Cogmind - Beta 14 @@@ ROGUE MODE // 2024.10.11 @ 00:04:13 Player: MarKhan Result: Destroyed by L-41 Fighter with Axe Performance ------------- Evolutions (4) 2000 Regions Visited (6) 1200 Robots Destroyed (81) 405 Value Destroyed (3239) 3239 Prototype IDs (18) 360 Alien Tech Used (0) 0 Bonus (1899) 1899 TOTAL SCORE: 9103 Bonus ------- High Alert Combat Kills 858 Follower Combat Kills 352 Entered Garrisons 200 Used RIF Installer 500 Friendly Fire -11 Cogmind --------- Core Integrity 0/850 Matter 300/300 Energy 36/100 System Corruption 11% Temperature Cool (9) Movement Flying (280) Ox6 Location -6/Factory Parts ------- > --- POWER (2) -------- Reinforced Quantum Reactor > --- PROPULSION (5) --- Flightbrick > --- UTILITY (5+3) ---- Advanced Heat Sink Huge Storage Unit Active Sensor Suite (+++) Layered Heavy Armor Plating Relay Coupler [NC] (15) > --- WEAPON (3) ------- Heavy Laser Improved Remote Datajack Segregator > --- INVENTORY (25) --- Armored Wheel Armored Wheel Large Battery (105) Matter Compressor (250) Matter Compressor (72) Enhanced Optical Array Matter Filter Weapon Cycler Improved Light Armor Plating EM Disruption Field Relay Coupler [Swarmer] (44) Relay Coupler [Demolisher] (26) Tractor Beam Plasma Rifle Improved Remote Datajack Peak State ------------ > --- POWER ------------ Fission Core Reinforced Quantum Reactor > --- PROPULSION ------- Armored Wheel Flightbrick > --- UTILITY ---------- Advanced Cooling System High-capacity Storage Unit Active Sensor Suite Matter Filter Layered Heavy Armor Plating > --- WEAPON ----------- Heavy Assault Cannon Improved Remote Datajack > --- INVENTORY -------- Armored Wheel Advanced Heat Sink Large Battery Matter Compressor Matter Compressor Enhanced Optical Array Weapon Cycler Layered Heavy Armor Plating EM Disruption Field Relay Coupler [NC] Relay Coupler [Swarmer] Relay Coupler [Grunt] Relay Coupler [Grunt] Relay Coupler [Demolisher] Relay Coupler [Hunter] Tractor Beam Advanced Assault Cannon Improved Remote Datajack Segregator [Rating: 122] Favorites ----------- Power Reinforced Quantum Reactor Engine Light Angular Momentum Engine Power Core Nuclear Core Reactor Reinforced Quantum Reactor Propulsion Improved Treads Treads Improved Treads Leg Carbon-fiber Leg Wheel Armored Wheel Flight Unit Flightbrick Utility Matter Filter Device Matter Filter Storage Huge Storage Unit Processor Target Analyzer Hackware Relay Coupler [NC] Protection Layered Heavy Armor Plating Weapon Particle Cannon Energy Gun Heavy Laser Energy Cannon Particle Cannon Ballistic Gun Flak Gun Ballistic Cannon Heavy Assault Cannon Launcher Mini Grenade Launcher Special Weapon Improved Remote Datajack Impact Weapon Heavy Hammer Slashing Weapon Segregator Build | -11 -10 -10 -8 -6 -6 -6 ------- Run | Yrd Mat Sub Rec Fac Gar Fac Slots Evolved 8 | . . . . 8 . . Power 1 | . . . . 1 . . Propulsion 3 | . . . . 3 . . Utility 3 | . . . . 3 . . Weapon 1 | . . . . 1 . . Parts Attached 181 | 9 39 10 9 10 78 26 Power 14 | 1 3 . 1 1 6 2 Engine 9 | 1 3 . . 1 4 . Core 4 | . . . 1 . 1 2 Reactor 1 | . . . . . 1 . Propulsion 48 | 2 14 . 2 6 24 . Treads 17 | . 8 . . 6 3 . Leg 7 | . . . . . 7 . Wheel 23 | 2 6 . 2 . 13 . Hover . | . . . . . . . Flight 1 | . . . . . 1 . Utility 52 | 2 8 3 6 2 17 14 Device 30 | 1 6 1 1 1 12 8 Storage 9 | 1 1 . 4 . 2 1 Processor 1 | . . . . . 1 . Hackware 4 | . . . . . . 4 Protection 8 | . 1 2 1 1 2 1 Artifact . | . . . . . . . Weapon 67 | 4 14 7 . 1 31 10 Energy Gun 20 | 4 6 . . . 9 1 Energy Cannon 11 | . 6 1 . 1 3 . Ballistic Gun 4 | . . . . . 4 . Ballistic Cannon 15 | . . 3 . . 8 4 Launcher 11 | . 2 3 . . 6 . Special Weapon 4 | . . . . . . 4 Impact Weapon 1 | . . . . . 1 . Slashing Weapon 1 | . . . . . . 1 Piercing Weapon . | . . . . . . . Special Melee Weapon . | . . . . . . . Unidentified Prototypes 1 | . . . . . 1 . Corrupted Parts 3 | . . . . . 3 . System Corruption 6 | . . . . . 6 . Parts Lost 23 | . 3 . . . 17 3 Power 3 | . . . . . 2 1 Propulsion 9 | . 1 . . . 8 . Utility 5 | . . . . . 4 1 Weapon 6 | . 2 . . . 3 1 Highest Loss Streak 6 | . 3 . . . 6 3 To Critical Strikes . | . . . . . . . Average Slot Usage (%) 88 | . 98 99 100 84 82 60 Engine 5 | . 14 14 . 5 5 . Core 4 | . . . 13 6 2 3 Reactor 1 | . . . . . 3 5 Treads 12 | . 9 28 21 32 7 . Leg 3 | . . . . . 11 . Wheel 7 | . 18 . 6 . 7 4 Device 12 | . 10 12 12 6 15 10 Storage 9 | . 14 14 14 6 5 5 Protection 3 | . 3 1 1 5 3 5 Energy Gun 2 | . 13 . . . 3 . Energy Cannon 6 | . 12 2 14 12 1 . Ballistic Gun 1 | . . . . . 4 1 Ballistic Cannon 6 | . . 1 14 6 4 7 Launcher 2 | . . 24 . . . . Peak Build Rating 122 | 9 13 16 20 32 119 122 Average Rating 45 | 5 9 13 18 31 64 116 On Entrance 29 | . 9 13 16 19 32 119 Naked Turns . | . . . . . . . Heaviest Build 164 | 12 34 36 96 110 160 164 Greatest Support 111 | 26 46 46 46 111 111 24 Greatest Overweight (x) 53 | 1 1 . 7 . 53 6 Average Overweight (x) 2 | . . . 2 . 4 4 Largest Inventory Capacity 25 | 8 15 15 25 25 25 25 Average Capacity 20 | 7 14 15 20 25 24 21 Most Carried 25 | 7 15 15 25 24 25 20 Average Carried 18 | 5 13 14 17 21 23 19 Final Capacity 25 | 8 15 15 25 25 20 25 Final Carried 25 | 7 15 14 25 23 20 15 Class Distribution -------------------- 50% | Mutant 16% | Scavenger-Tank 11% | Bothacker-Skirmisher 11% | Scavenger-Gunner 4% | Skirmisher 3% | Tank Dominant Class ---------------- Mutant | -10/Materials Mutant | -10/Subcaves Mutant | -8/Recycling Tank | -6/Factory Scavenger-Tank | -6/Garrison Bothacker-Skirmisher | -6/Factory Resources | -11 -10 -10 -8 -6 -6 -6 ----------- Run | Yrd Mat Sub Rec Fac Gar Fac Matter Collected 4873 | 312 820 219 233 . 1576 1713 Remotely 351 | . . . . . . 351 Salvage Created 2570 | 157 616 35 202 . 934 626 Parts 141 | 11 38 8 9 . 48 27 Haulers Intercepted 2 | . 2 . . . . . Recyclers Shooed 2 | . . . 1 . . 1 Parts Field Recycled . | . . . . . . . Retrieved Matter . | . . . . . . . Parts Self-Destructed 12 | . . 12 . . . . Prevented . | . . . . . . . Kills | -11 -10 -10 -8 -6 -6 -6 ------- Run | Yrd Mat Sub Rec Fac Gar Fac Combat Hostiles Destroyed 61 | . 17 5 3 . 22 14 Guns 10 | . 4 . . . 6 . Cannons 33 | . 7 . 3 . 10 13 AOE 18 | . 6 5 . . 6 1 Classes Destroyed 16 | 3 4 2 2 . 3 2 Worker 3 | 1 . . . . . 2 Builder 2 | . . . 1 . . 1 Tunneler 3 | 3 . . . . . . Hauler 2 | . 2 . . . . . Recycler 3 | 1 1 . 1 . . . Mechanic 2 | . . . . . . 2 Turret 2 | . . 2 . . . . Watcher 3 | . 2 . . . 1 . Swarmer 15 | . 9 3 . . 3 . Cutter 3 | . . . . . 3 . Saboteur 1 | . . . . . 1 . Grunt 28 | . 8 . . . 10 10 Brawler 2 | . . . . . . 2 Sentry 5 | . . . 3 . 2 . Programmer 5 | . . . . . 3 2 Subdweller 2 | . . 2 . . . . Best Kill Streak 6 | 3 4 5 2 . 5 6 Combat Bots Only 5 | . 3 3 2 . 5 5 Max Kills in Single Turn 3 | 1 3 3 1 . 3 2 Gunslinging . | . . . . . . . Exploded 3 | . 3 3 . . 3 1 Melee . | . . . . . . . Uniques/NPCs Destroyed . | . . . . . . . Combat | -11 -10 -10 -8 -6 -6 -6 -------- Run | Yrd Mat Sub Rec Fac Gar Fac Hostile Shots Fired 561 | . 36 64 8 . 189 264 Missed 156 | . 11 27 1 . 58 59 Damage Taken 7025 | . 416 293 107 76 2004 4129 Core 994 | . 28 68 34 38 221 605 Absorbed by Shields . | . . . . . . . Regen/Repaired (Parts) 10 | . . . . . . 10 Core Remaining (%) 74 | 100 . . 48 . . . Volleys Fired 215 | 15 40 19 8 . 77 56 Largest 3 | 2 2 2 2 . 3 2 Hottest 195 | 80 136 60 107 . 195 108 Shots Fired 420 | 30 80 27 16 . 169 98 Gun 154 | 30 33 . . . 90 1 Cannon 225 | . 46 11 16 . 65 87 Launcher 31 | . 1 16 . . 14 . Special 10 | . . . . . . 10 Kinetic 191 | . . 11 8 . 84 88 Thermal 109 | 30 49 . 8 . 22 . Explosive 31 | . 1 16 . . 14 . Electromagnetic 79 | . 30 . . . 49 . Robot Hit Streak 12 | 5 10 7 5 . 12 8 Robot Miss Streak 10 | 2 4 1 2 . 10 5 Penetration Max 1 | . . . . . . 1 Secondary Targets . | . . . . . . . Shots Hit Robots 255 | 19 48 9 11 . 116 52 Core Hits 176 | 6 25 19 5 . 94 27 Critical Kills . | . . . . . . . Critical Parts Destroyed 1 | . . . . . 1 . Critical Strikes 8 | . . . 1 . 1 6 Blast 7 | . . . 1 . . 6 Smash 1 | . . . . . 1 . Melee Attacks 20 | . . . . . 14 6 Thermal 6 | . . . . . . 6 Impact 14 | . . . . . 14 . Slashing . | . . . . . . . Piercing . | . . . . . . . Sneak Attacks . | . . . . . . . Combat Hostiles . | . . . . . . . Follow-up Attacks . | . . . . . . . Damage Inflicted 8154 | 204 1217 808 229 . 3283 2413 Guns 1512 | 204 247 . . . 1061 . Cannons 3790 | . 543 . 229 . 858 2160 Explosions 2109 | . 427 808 . . 639 235 Melee 725 | . . . . . 725 . Ramming 18 | . . . . . . 18 Kinetic 3384 | . . . 106 . 1118 2160 Thermal 1752 | 204 856 . 123 . 334 235 Explosive 1501 | . 124 808 . . 569 . Electromagnetic 774 | . 237 . . . 537 . Impact 725 | . . . . . 725 . Slashing . | . . . . . . . Piercing . | . . . . . . . Highest Corruption 11 | . . . 1 . 10 11 Average Corruption 7 | . . . 1 . 8 10 Corruption Purged 1 | . . . . . 1 . Corruption Blocked . | . . . . . . . Effects 137 | . . . 4 . 89 44 Message Errors 26 | . . . . . 16 10 Matter Fused 32 | . . . 1 . 23 8 Heat Flow Errors 20 | . . . 2 . 12 6 Energy Discharges 22 | . . . . . 17 5 Parts Rejected 3 | . . . . . . 3 Parts Fused 1 | . . . . . . 1 Data Loss (minor) 17 | . . . 1 . 12 4 Data Loss (major) 4 | . . . . . 3 1 Misfires 9 | . . . . . 4 5 Alerts 2 | . . . . . 1 1 Weapon Failures 1 | . . . . . 1 . Overload Shots . | . . . . . . . Overflow Damage 504 | . 214 4 . . 192 94 Projectiles 103 | . 7 . . . 19 77 Explosions 261 | . 207 4 . . 33 17 Melee 140 | . . . . . 140 . Knockbacks 32 | . . . . . 14 18 Impact 1 | . . . . . . 1 Kinetic 28 | . . . . . 14 14 Secondary 3 | . . . . . . 3 Self-Inflicted Damage 398 | . 184 . . . 108 106 Shots 6 | . 2 . . . 3 1 Rammed 3 | . . . . . . 3 Targets Rammed 3 | . . . . . . 3 Kicked . | . . . . . . . Crushed . | . . . . . . . Highest Temperature 568 | 108 275 1 232 . 510 568 Average Temperature 117 | 43 89 1 77 . 132 139 Received Heat Transfer 1966 | . 45 216 27 . 495 1183 Effects 19 | . . . . . 8 11 Shutdowns 3 | . . . . . 2 1 Energy Bleed 3 | . . . . . . 3 Interference 6 | . . . . . 2 4 Matter Decay 1 | . . . . . 1 . Short Circuit 4 | . . . . . 3 1 Damage (core) 2 | . . . . . . 2 Siege Activations . | . . . . . . . Robots Corrupted 1 | . . . . . 1 . Combat Hostiles . | . . . . . . . Parts Fried 3 | . 2 . . . 1 . Impact Corruptions 3 | . . . . . 3 . Robots Melted . | . . . . . . . Combat Hostiles . | . . . . . . . Parts Melted 8 | 1 3 . 1 . 2 1 Heat Transferred 2663 | 475 1261 . 222 . 505 200 Parts Sabotaged 2 | . . . . . 2 . Parts Stolen . | . . . . . . . Parts Stripped . | . . . . . . . Power Chain Reactions 2 | . 1 . . . 1 . Alert | -11 -10 -10 -8 -6 -6 -6 ------- Run | Yrd Mat Sub Rec Fac Gar Fac Peak Influence 2168 | 25 491 . 120 564 2168 1417 Initial 1138 | . 16 . 55 550 394 1138 Average 645 | 10 274 . 39 550 1100 1089 Maximum Alert Level 5 | . 2 . . 2 5 4 Low Security (%) 33 | 100 21 . 100 . . . Level 1 10 | . 74 . . . 1 . Level 2 11 | . 4 . . 100 23 . Level 3 18 | . . . . . 31 45 Level 4 17 | . . . . . 23 54 Level 5 7 | . . . . . 20 . High Security . | . . . . . . . Max Security . | . . . . . . . Squads Dispatched 14 | . 5 . . . . 9 Investigation 3 | . 1 . . . . 2 Extermination 2 | . . . . . . 2 Reinforcement 4 | . 4 . . . . . Assault 5 | . . . . . . 5 Garrison . | . . . . . . . Intercept . | . . . . . . . Searches Triggered . | . . . . . . . Construction Impeded . | . . . . . . . Haulers Reinforced . | . . . . . . . Active Scanning Responses 1 | . . . . . . 1 Cargo Convoy Interrupts . | . . . . . . . Stealth | -11 -10 -10 -8 -6 -6 -6 --------- Run | Yrd Mat Sub Rec Fac Gar Fac Distress Signals 3 | . 1 . . . 2 . Communications Jammed . | . . . . . . . Distress Signals . | . . . . . . . Times Spotted 111 | . 21 9 3 . 32 46 Peak Tracking Total 9 | . 4 6 2 1 5 9 Tactical Retreats 7 | . . 1 . . 1 5 Traps | -11 -10 -10 -8 -6 -6 -6 ------- Run | Yrd Mat Sub Rec Fac Gar Fac Traps Triggered 10 | . 3 . . 1 6 . Indirectly . | . . . . . . . Trap Hack Attempts . | . . . . . . . Triggered . | . . . . . . . Disarmed . | . . . . . . . Reprogrammed . | . . . . . . . Reused . | . . . . . . . Traps Extracted . | . . . . . . . Installed . | . . . . . . . Triggered . | . . . . . . . Machines | -11 -10 -10 -8 -6 -6 -6 ---------- Run | Yrd Mat Sub Rec Fac Gar Fac Machines Disabled 19 | . 5 5 . . 7 2 Max in Single Turn 3 | . 3 3 . . 1 1 Garrison Relay 3 | . . . . . 3 . Machines Repaired . | . . . . . . . Machines Dismantled . | . . . . . . . Machines Sabotaged . | . . . . . . . Overloaded Fab Kills . | . . . . . . . Hacking | -11 -10 -10 -8 -6 -6 -6 --------- Run | Yrd Mat Sub Rec Fac Gar Fac Machines Accessed 19 | . 3 1 11 1 . 3 Terminals 8 | . 1 . 5 . . 2 Fabricators . | . . . . . . . Repair Stations 2 | . 1 . . . . 1 Recycling Units 7 | . 1 . 6 . . . Scanalyzers . | . . . . . . . Garrison Access 1 | . . . . 1 . . Total Hacks 63 | . 10 2 39 2 . 10 Successful 38 | . 7 2 23 1 . 5 Failed 25 | . 3 . 16 1 . 5 Catastrophic 1 | . . . . . . 1 Database Lockouts . | . . . . . . . Manual 40 | . 5 . 30 . . 5 Terminals 28 | . 2 . 19 . . 7 Fabricators . | . . . . . . . Repair Stations 4 | . 1 . . . . 3 Recycling Units 27 | . 7 . 20 . . . Scanalyzers . | . . . . . . . Garrison Access 2 | . . . . 2 . . Terminal Hacks 8 | . . 2 5 . . 1 Record 2 | . . 1 . . . 1 Prototype ID Bank 3 | . . . 3 . . . Terminal Index 1 | . . . 1 . . . Zone Layout 1 | . . . 1 . . . Derelict Proto ID Bank 1 | . . 1 . . . . Fabricator Hacks . | . . . . . . . Repair Station Hacks 1 | . . . . . . 1 Scan Component 1 | . . . . . . 1 Recycling Unit Hacks 6 | . 4 . 2 . . . Process 1 | . 1 . . . . . Report Inventory 3 | . 1 . 2 . . . Retrieve Matter 2 | . 2 . . . . . Scanalyzer . | . . . . . . . Garrison Access Hacks 1 | . . . . 1 . . Unlock Access 1 | . . . . 1 . . Unauthorized Hacks 22 | . 3 . 16 . . 3 Terminals 6 | . . . 3 . . 3 Track 2 | . . . 1 . . 1 Botnet 3 | . . . 2 . . 1 Operators 1 | . . . . . . 1 Fabricators . | . . . . . . . Repair Stations 1 | . 1 . . . . . Mechanics 1 | . 1 . . . . . Recycling Units 15 | . 2 . 13 . . . Monitor 1 | . . . 1 . . . Reject 6 | . . . 6 . . . Recyclers 2 | . 1 . 1 . . . Tunnel 6 | . 1 . 5 . . . Scanalyzers . | . . . . . . . Garrison Access . | . . . . . . . Data Cores Recovered . | . . . . . . . Used . | . . . . . . . Hacking Detections 15 | . 2 . 9 1 . 3 Full Trace Events 7 | . . . 6 . . 1 Feedback Events 1 | . . . 1 . . . Corruption 1 | . . . 1 . . . Feedback Blocked . | . . . . . . . Robot Schematics Acquired . | . . . . . . . Robots Built . | . . . . . . . Authchips . | . . . . . . . Time . | . . . . . . . Total Robot Build Rating . | . . . . . . . Part Schematics Acquired . | . . . . . . . Parts Built . | . . . . . . . Authchips . | . . . . . . . Time . | . . . . . . . Total Part Build Rating . | . . . . . . . Parts Repaired . | . . . . . . . Time . | . . . . . . . Parts Recycled . | . . . . . . . Recycled Matter 156 | . 156 . . . . . Retrieved Matter 291 | . 291 . . . . . Retrieved Components . | . . . . . . . Parts Scanalyzed . | . . . . . . . Part Schematics Acquired . | . . . . . . . Parts Damaged . | . . . . . . . Bothacking | -11 -10 -10 -8 -6 -6 -6 ------------ Run | Yrd Mat Sub Rec Fac Gar Fac Used RIF Installer 1 | . . . . . 1 . Robots Hacked 8 | . . . . . . 8 Non-combat 3 | . . . . . . 3 Combat 5 | . . . . . . 5 Robot Hacks Applied 8 | . . . . . . 8 streamctrl_low 2 | . . . . . . 2 formatsys_low 1 | . . . . . . 1 formatsys_high 5 | . . . . . . 5 Relay Couplers Released 17 | . . . . . 17 . Machine Destruction 13 | . . . . . 13 . Programmers 4 | . . . . . 4 . Attached 4 | . . . . . . 4 Fabnet Peak Effective % . | . . . . . . . Robots Rewired 1 | . . . . . . 1 Allies Hacked . | . . . . . . . Hacks Repelled . | . . . . . . . Allies | -11 -10 -10 -8 -6 -6 -6 -------- Run | Yrd Mat Sub Rec Fac Gar Fac Total Allies 11 | . . . . . 2 9 Largest Group 4 | . . . . . 2 4 Highest-Rated Group 142 | . . . . . 142 142 Highest-Rated Ally 80 | . . . . . 80 80 Total Orders 4 | . . . . . . 4 FOLLOW 2 | . . . . . . 2 AID 2 | . . . . . . 2 Ally Attacks 58 | . . . . . 12 46 Total Damage 1548 | . . . . . 386 1162 Kills 10 | . . . . . 4 6 Allies Corrupted 1 | . . . . . . 1 Allies Melted 1 | . . . . . . 1 Intel | -11 -10 -10 -8 -6 -6 -6 ------- Run | Yrd Mat Sub Rec Fac Gar Fac Robot Analysis Total . | . . . . . . . Derelict Logs Recovered 1 | . . 1 . . . . Drone Launches . | . . . . . . . Drone Recoveries . | . . . . . . . Exploration | -11 -10 -10 -8 -6 -6 -6 ------------- Run | Yrd Mat Sub Rec Fac Gar Fac Turns Passed 9434 | 146 1167 1029 2454 162 3200 1276 Spaces Moved 4509 | 91 830 593 1279 93 1255 368 Core 2 | 1 . . . . 1 . Treads 1780 | . 197 593 800 93 97 . Legs 433 | . . . . . 433 . Wheels 1796 | 90 633 . 479 . 594 . Hover . | . . . . . . . Flight 498 | . . . . . 130 368 Fastest Speed 50 | 50 90 160 145 157 131 205 Average Speed 180 | 86 114 160 187 157 217 243 Slowest Speed 2700 | 95 160 160 320 157 2700 285 Overloaded Moves . | . . . . . . . Propulsion Burnouts . | . . . . . . . Robots Hopped . | . . . . . . . Cave-ins Triggered . | . . . . . . . Exploration Rate (%) 43 | 7 93 35 86 2 75 9 Regions Visited 6 Branch Regions 2 Pre-discovered Areas 6 | . 1 . 5 . . . Known Exits Taken 2 | . . 1 . 1 . . Unknown Exits Taken 3 | 1 1 . 1 . . . Scrap Searched 2 | . . 2 . . . . Spaces Dug 3 | . . . . . 3 . Terrain Destroyed 258 | . 49 54 1 . 88 66 Melee . | . . . . . . . Projectile 39 | . . . 1 . 8 30 AOE 219 | . 49 54 . . 80 36 Terrain Rammed . | . . . . . . . Walls Destroyed . | . . . . . . . Machines Disabled . | . . . . . . . Actions | -11 -10 -10 -8 -6 -6 -6 --------- Run | Yrd Mat Sub Rec Fac Gar Fac Total 5355 | 124 976 644 1321 108 1561 621 Wait 188 | . 14 17 9 2 9 137 Move 4502 | 90 829 592 1278 92 1253 368 Hop . | . . . . . . . Pick Up 93 | 9 29 1 12 3 32 7 Fast Attach 44 | 6 7 . . . 26 5 Attach 33 | 1 3 1 . 7 18 3 Detach 12 | . . . . 1 9 2 Swap 104 | 2 29 9 9 3 34 18 Drop 94 | 1 25 5 5 . 49 9 Fire 215 | 15 40 19 8 . 77 56 Melee 20 | . . . . . 14 6 Ram 3 | . . . . . . 3 Kick . | . . . . . . . Crush . | . . . . . . . Escape Stasis 40 | . . . . . 40 . Rewire 7 | . . . . . . 7 Trap . | . . . . . . . Miscellaneous . | . . . . . . . Route ------- -11/Scrapyard -10/Materials (discovered 5 exits: [*Mat x3] / [*Min] / *Sub) -10/Subcaves (discovered 2 exits: [*Mat] / *Rec) -8/Recycling -6/Factory -6/Garrison (discovered 3 exits: *Fac x3) -6/Factory (discovered 1 exit: [*Fac]) History --------- Turn | Location | Event 18 | -11/Scrapyard | Discovered new exit (range 16) 147 | -11/Scrapyard | Entered Materials 212 | -10/Materials | Discovered new exit (range 16) 306 | -10/Materials | Build established: Mutant 401 | -10/Materials | Discovered new exit (range 4) 536 | -10/Materials | Lost 3 parts (1n2w) 637 | -10/Materials | Discovered new exit (range 13) 798 | -10/Materials | Discovered new exit (range 11) 1181 | -10/Materials | Discovered new exit (range 10) 1314 | -10/Materials | Entered Subcaves 1316 | -10/Subcaves | Discovered new exit (range 9) 1641 | -10/Subcaves | A swath of the cavern ceiling suddenly collapsed 1736 | -10/Subcaves | Identified exit to Recycling 1860 | -10/Subcaves | Visited 4L-MR0's lab 1882 | -10/Subcaves | Found Flightbrick 2343 | -10/Subcaves | Entered Recycling 3385 | -8/Recycling | Core integrity fell below 50% 3444 | -8/Recycling | Discovered new exit (range 15) 4797 | -8/Recycling | Entered Factory 4797 | -6/Factory | Evolved 8 slots: Power x1, Propulsion x3, Utility x3, Weapon x1 4957 | -6/Factory | Identified exit to Garrison 4959 | -6/Factory | Entered Garrison 5183 | -6/Garrison | Triggered checkpoint 5200 | -6/Garrison | Triggered checkpoint 5298 | -6/Garrison | Lost 6 parts (1p2n1u2w) 5735 | -6/Garrison | Triggered checkpoint 5836 | -6/Garrison | Lost 3 parts (1n1u1w) 5886 | -6/Garrison | Discovered new exit (range 9) 5961 | -6/Garrison | Heavy support dispatched to Factory 5986 | -6/Garrison | Build established: Scavenger-Gunner 6025 | -6/Garrison | Heavy support dispatched to Factory 6063 | -6/Garrison | Triggered checkpoint 6242 | -6/Garrison | System corruption reached 10% 6418 | -6/Garrison | H-XX Assembler disabled 6455 | -6/Garrison | Discovered new exit (range 11) 6533 | -6/Garrison | Triggered checkpoint 6584 | -6/Garrison | Build established: Scavenger-Tank 6597 | -6/Garrison | Triggered checkpoint 6686 | -6/Garrison | Installed Relay Interface Framework 6751 | -6/Garrison | Found embedded Infiltrators 6755 | -6/Garrison | Triggered checkpoint 7191 | -6/Garrison | Triggered checkpoint 7278 | -6/Garrison | Discovered new exit (range 14) 7415 | -6/Garrison | Garrison Relay disabled 7826 | -6/Garrison | Attached Flightbrick, gained temporary slots: Utility x3 7852 | -6/Garrison | Found Prototype Device 7852 | -6/Garrison | Identified Active Sensor Suite 8007 | -6/Garrison | Garrison Relay disabled 8041 | -6/Garrison | Garrison Relay disabled 8150 | -6/Garrison | Identified exit to Factory 8159 | -6/Garrison | Entered Factory 8159 | -6/Factory | Accompanied by 2 allies 8305 | -6/Factory | Build established: Bothacker-Skirmisher 8509 | -6/Factory | First assault squad dispatched 8766 | -6/Factory | Discovered new exit (range 14) 9069 | -6/Factory | Lost 3 allies 9342 | -6/Factory | Core integrity fell below 50% 9393 | -6/Factory | Core integrity fell below 20% 9435 | -6/Factory | Destroyed by L-41 Fighter with Axe Last Messages --------------- 09411_ Penetrated by Slug. 09412_ Attempting to rewire G-50 Soldier. 09415_ G-50 Soldier rewired. 09416_ Slug penetrates Soldier 5c. 09416_ C-30 ARC bursts open, deploying its payload. 09416_ G-67 Veteran unfolds itself. 09416_ L-41 Fighter unfolds itself. 09416_ G-50 Soldier unfolds itself. 09419_ Acquired 2 matter. 09421_ Slug penetrates Wall. 09422_ Acquired 59 matter. 09425_ Acquired 98 matter. 09425_ U-05 Engineer builds a Wall. 09430_ Slug penetrates Wall. 09430_ Slammed into G-67 Veteran. 09432_ Slug penetrates Wall. 09433_ Slammed into G-50 Soldier. 09433_ G-50 Soldier knocked back. 09434_ Penetrated by Slug. Map ----- +----------------------------------------------------+ | #####" # ^! # % % " " """ ???????? | | + ^ =# " " #??????? | | ### # # #####+####"" """""""" !#??????? | | ??# ######## ## "" # # ########??????? | | ??# ##"S #" #######?????????????? | | ??###"#####"### ##""" ## #???????????????????? | | #############?# ## "" ## #???????????????????? | | ! #?# ## ## #???????????????????? | | #?# ## """ ## #???????????????????? | | """"""" #?# ## """"" ## #???????????????????? | | """"""" #?# ## """"" #" #???????????????????? | | """""""??????# ## ## #???????????????????? | | """"""" #?# ############"#???????????????????? | | #?? ???# %;%##??????????????????? | | #?? ???#""" *!; "#??????????????????? | | [ """ #?? ???#"R %%%%"#########??????????? | | ! R" ??? ???#""" # % ?????? | | """???? ???# "" # ?????? | | ????